[Event "Slovakia Open Piestany-A 2022"]
[Site "Piestany"]
[Date "2022.07.17"]
[Round "8.10"]
[White "Aradhya, Garg"]
[Black "Stefansson, Vignir Vatnar"]
[Result "1/2-1/2"]
[ECO "E46"]
[WhiteElo "2229"]
[BlackElo "2461"]
[Annotator "ChessBase"]
[PlyCount "44"]
[EventDate "2022.07.12"]
[EventType "swiss"]
[EventCountry "SVK"]
[SourceTitle "playchess.com"]
[Source "ChessBase"]
[SourceQuality "1"]
[TimeControl "40/5400+30:1800+30"]

1. d4 {[%emt 0:00:01]} Nf6 {[%emt 0:06:12]} 2. c4 {[%emt 0:00:02]} e6 {[%emt 0:00:16]} 3. Nc3 {[%emt 0:00:03]} Bb4 {[%emt 0:00:16]} 4. e3 {[%emt 0:00:17]} O-O {[%emt 0:00:11]} 5. Bd2 {[%emt 0:00:02]} d5 {[%emt 0:03:36]} 6. Rc1 {[%emt 0:00:45]} Re8 {[%emt 0:01:08]} 7. Nf3 {[%emt 0:01:42]} Nbd7 {[%emt 0:04:40]} 8. a3 {[%emt 0:04:22]} Bf8 {[%emt 0:00:54]} 9. Qc2 {[%emt 0:02:02]} a6 {[%emt 0:04:00]} 10. b4 {[%emt 0:10:39]} c6 {[%emt 0:00:08]} 11. Bd3 {[%emt 0:02:37]} a5 {[%emt 0:08:19]} 12. Qb2 {[%emt 0:21:50]} axb4 {[%emt 0:04:55]} 13. axb4 {[%emt 0:00:02]} dxc4 {[%emt 0:00:22]} 14. Bxc4 {[%emt 0:00:01]} b5 {[%emt 0:00:16]} 15. Ba2 {[%emt 0:05:58]} Nd5 {[%emt 0:00:48]} 16. Ne4 {[%emt 0:07:46]} Nxb4 {[%emt 0:11:44]} 17. Bxb4 {[%emt 0:05:06]} Bxb4+ {[%emt 0:02:31]} 18. Qxb4 {[%emt 0:00:02]} Rxa2 {[%emt 0:00:09]} 19. Nd6 {[%emt 0:01:32]} Rf8 {[%emt 0:00:39]} 20. O-O {[%emt 0:01:34]} Ra4 {[%emt 0:00:15]} 21. Qc3 {[%emt 0:02:07]} Nb8 {[%emt 0:05:50]} 22. Qc5 {[%emt 0:00:06]} Bd7 {[%emt 0:06:44]} 1/2-1/2

[Event "Slovakia Open Piestany-A 2022"]
[Site "Piestany"]
[Date "2022.07.17"]
[Round "8.11"]
[White "Samunenkov, Ihor"]
[Black "Palchuk, Andrii"]
[Result "1-0"]
[ECO "B56"]
[WhiteElo "2448"]
[BlackElo "2248"]
[Annotator "ChessBase"]
[PlyCount "81"]
[EventDate "2022.07.12"]
[EventType "swiss"]
[EventCountry "SVK"]
[SourceTitle "playchess.com"]
[Source "ChessBase"]
[SourceQuality "1"]
[TimeControl "40/5400+30:1800+30"]

1. e4 {[%emt 0:00:06]} c5 {[%emt 0:05:43]} 2. Nc3 {[%emt 0:00:17]} Nc6 {[%emt 0:00:24]} 3. Nge2 {[%emt 0:00:22]} d6 {[%emt 0:03:17]} 4. d4 {[%emt 0:00:31]} cxd4 {[%emt 0:00:04]} 5. Nxd4 {[%emt 0:00:06]} Nf6 {[%emt 0:00:05]} 6. f3 {[%emt 0:00:19]} e5 {[%emt 0:04:18]} 7. Nb3 {[%emt 0:00:15]} Be7 {[%emt 0:02:19]} 8. Be3 {[%emt 0:03:22]} Be6 {[%emt 0:00:12]} 9. Nd5 {[%emt 0:01:03]} O-O {[%emt 0:04:58]} 10. c3 {[%emt 0:01:16]} Rc8 {[%emt 0:15:51]} 11. Be2 {[%emt 0:10:38]} Bxd5 {[%emt 0:10:51]} 12. exd5 {[%emt 0:00:10]} Na5 {[%emt 0:00:26]} 13. Bxa7 {[%emt 0:09:05]} Nxb3 {[%emt 0:00:22]} 14. axb3 {[%emt 0:10:11]} Ra8 {[%emt 0:01:31]} 15. c4 {[%emt 0:10:32]} b6 {[%emt 0:04:53]} 16. Ra6 {[%emt 0:11:26]} Qc8 {[%emt 0:05:59]} 17. Qa1 {[%emt 0:01:15]} Qc5 {[%emt 0:01:38]} 18. Bxb6 {[%emt 0:06:23]} Rxa6 {[%emt 0:05:24]} 19. Qxa6 {[%emt 0:00:09]} Qb4+ {[%emt 0:00:16]} 20. Kf2 {[%emt 0:03:19]} Rb8 {[%emt 0:03:42]} 21. Ba7 {[%emt 0:08:25]} Ra8 {[%emt 0:21:26]} 22. Qb6 {[%emt 0:07:04]} Qd2 {[%emt 0:01:59]} 23. Rd1 {[%emt 0:09:41]} Qxb2 {[%emt 0:03:41]} 24. Qb7 {[%emt 0:02:24]} Re8 {[%emt 0:01:08]} 25. Qb4 {[%emt 0:00:30]} Ra8 {[%emt 0:01:00]} 26. Kf1 {[%emt 0:01:35]} Bf8 {[%emt 0:00:56]} 27. Qb7 {[%emt 0:00:49]} Re8 {[%emt 0:00:51]} 28. Be3 {[%emt 0:00:37]} Nh5 {[%emt 0:00:25]} 29. g3 {[%emt 0:01:18]} Nf4 {[%emt 0:00:27]} 30. gxf4 {[%emt 0:00:56]} exf4 {[%emt 0:00:12]} 31. Bd2 {[%emt 0:00:18]} Qe5 {[%emt 0:00:38]} 32. Re1 {[%emt 0:00:37]} Qh5 {[%emt 0:00:56]} 33. Bxf4 {[%emt 0:00:54]} g5 {[%emt 0:00:26]} 34. Bg3 {[%emt 0:00:33]} Qh3+ {[%emt 0:00:06]} 35. Kg1 {[%emt 0:00:37]} h5 {[%emt 0:01:01]} 36. Qb6 {[%emt 0:00:34]} Qf5 {[%emt 0:00:20]} 37. Bxd6 {[%emt 0:00:33]} Qf6 {[%emt 0:00:33]} 38. Bc5 {[%emt 0:00:46]} Qc3 {[%emt 0:00:16]} 39. Bf2 {[%emt 0:00:30]} Bb4 {[%emt 0:00:49]} 40. d6 {[%emt 0:00:21]} Qd2 {[%emt 0:00:21]} 41. d7 {[%emt 0:30:24]} 1-0

[Event "Slovakia Open Piestany-A 2022"]
[Site "Piestany"]
[Date "2022.07.17"]
[Round "8.12"]
[White "Mullick, Raahil"]
[Black "Piesik, Piotr"]
[Result "*"]
[ECO "B12"]
[WhiteElo "2237"]
[BlackElo "2440"]
[Annotator "ChessBase"]
[PlyCount "71"]
[EventDate "2022.07.12"]
[EventType "swiss"]
[EventCountry "SVK"]
[SourceTitle "playchess.com"]
[Source "ChessBase"]
[SourceQuality "1"]
[TimeControl "40/5400+30:1800+30"]

1. e4 {[%emt 0:00:04]} c6 {[%emt 0:03:26]} 2. d4 {[%emt 0:00:12]} d5 {[%emt 0:00:05]} 3. e5 {[%emt 0:00:05]} Bf5 {[%emt 0:00:06]} 4. h4 {[%emt 0:00:22]} h5 {[%emt 0:00:04]} 5. Bd3 {[%emt 0:00:06]} Bxd3 {[%emt 0:00:27]} 6. Qxd3 {[%emt 0:00:08]} Qa5+ {[%emt 0:00:49]} 7. Bd2 {[%emt 0:07:40]} Qa6 {[%emt 0:14:53]} 8. Qf3 {[%emt 0:19:48]} e6 {[%emt 0:00:39]} 9. Ne2 {[%emt 0:00:28]} c5 {[%emt 0:04:19]} 10. dxc5 {[%emt 0:10:55]} Bxc5 {[%emt 0:14:20]} 11. Nf4 {[%emt 0:13:05]} Nc6 {[%emt 0:07:09]} 12. Nd3 {[%emt 0:04:10]} Nd4 {[%emt 0:06:57]} 13. Qd1 {[%emt 0:00:16]} Rc8 {[%emt 0:02:09]} 14. Be3 {[%emt 0:07:06]} Bb6 {[%emt 0:01:22]} 15. c3 {[%emt 0:06:22]} Nf5 {[%emt 0:01:23]} 16. Bxb6 {[%emt 0:00:30]} Qxb6 {[%emt 0:00:38]} 17. Nd2 {[%emt 0:02:29]} Nge7 {[%emt 0:02:25]} 18. O-O {[%emt 0:05:03]} Ng6 {[%emt 0:02:12]} 19. Qa4+ {[%emt 0:12:44]} Kf8 {[%emt 0:00:47]} 20. c4 {[%emt 0:00:30]} dxc4 {[%emt 0:17:35]} 21. Rac1 {[%emt 0:06:07]} Kg8 {[%emt 0:08:10]} 22. Rxc4 {[%emt 0:00:30]} Rxc4 {[%emt 0:00:16]} 23. Qxc4 {[%emt 0:00:45]} Kh7 {[%emt 0:01:26]} 24. Nf3 {[%emt 0:01:26]} Rd8 {[%emt 0:00:29]} 25. Nf4 {[%emt 0:01:24]} Nxf4 {[%emt 0:02:10]} 26. Qxf4 {[%emt 0:00:00]} Qxb2 {[%emt 0:04:22]} 27. Qg5 {[%emt 0:00:02]} Rc8 {[%emt 0:00:30]} 28. Rd1 {[%emt 0:01:11]} Nh6 {[%emt 0:01:26]} 29. Qxh5 {[%emt 0:00:31]} Rc1 {[%emt 0:03:02]} 30. Ng5+ {[%emt 0:00:30]} Kg8 {[%emt 0:00:30]} 31. Qf3 {[%emt 0:00:30]} Nf5 {[%emt 0:00:06]} 32. Qd3 {[%emt 0:00:37]} Rxd1+ {[%emt 0:00:51]} 33. Qxd1 {[%emt 0:00:01]} Nd4 {[%emt 0:00:55]} 34. g3 {[%emt 0:00:02]} Qc1 {[%emt 0:00:37]} 35. Kf1 {[%emt 0:01:27]} Ne2 {[%emt 0:00:01]} 36. f4 {[%emt 0:00:47]} *

[Event "Slovakia Open Piestany-A 2022"]
[Site "Piestany"]
[Date "2022.07.17"]
[Round "8.13"]
[White "Straka, Jozef"]
[Black "Kostolansky, Sebastian Lukas"]
[Result "1/2-1/2"]
[ECO "D36"]
[WhiteElo "2300"]
[BlackElo "2406"]
[Annotator "ChessBase"]
[PlyCount "73"]
[EventDate "2022.07.12"]
[EventType "swiss"]
[EventCountry "SVK"]
[SourceTitle "playchess.com"]
[Source "ChessBase"]
[SourceQuality "1"]
[TimeControl "40/5400+30:1800+30"]

1. d4 {[%emt 0:00:05]} Nf6 {[%emt 0:00:10]} 2. c4 {[%emt 0:00:05]} e6 {[%emt 0:00:19]} 3. Nc3 {[%emt 0:00:03]} d5 {[%emt 0:01:11]} 4. cxd5 {[%emt 0:00:38]} exd5 {[%emt 0:00:05]} 5. Bg5 {[%emt 0:00:06]} c6 {[%emt 0:00:05]} 6. e3 {[%emt 0:00:05]} h6 {[%emt 0:03:30]} 7. Bh4 {[%emt 0:00:56]} Be7 {[%emt 0:00:07]} 8. Bd3 {[%emt 0:00:49]} O-O {[%emt 0:00:26]} 9. Qc2 {[%emt 0:00:49]} Re8 {[%emt 0:05:47]} 10. Nf3 {[%emt 0:05:01]} Nbd7 {[%emt 0:13:15]} 11. O-O {[%emt 0:02:18]} Nf8 {[%emt 0:00:53]} 12. Rab1 {[%emt 0:01:26]} Bg4 {[%emt 0:10:52]} 13. Ne5 {[%emt 0:01:52]} Bh5 {[%emt 0:04:50]} 14. b4 {[%emt 0:04:02]} a6 {[%emt 0:02:48]} 15. a4 {[%emt 0:04:54]} N6d7 {[%emt 0:04:29]} 16. Bxe7 {[%emt 0:03:40]} Qxe7 {[%emt 0:12:35]} 17. Nxd7 {[%emt 0:01:10]} Qxd7 {[%emt 0:03:13]} 18. b5 {[%emt 0:01:29]} axb5 {[%emt 0:00:09]} 19. axb5 {[%emt 0:00:03]} Bg6 {[%emt 0:06:50]} 20. bxc6 {[%emt 0:03:43]} bxc6 {[%emt 0:00:07]} 21. Bxg6 {[%emt 0:06:10]} Nxg6 {[%emt 0:00:06]} 22. Rfc1 {[%emt 0:00:10]} Nh4 {[%emt 0:06:11]} 23. Ne2 {[%emt 0:03:09]} Ra6 {[%emt 0:01:41]} 24. Ng3 {[%emt 0:07:21]} Rea8 {[%emt 0:02:33]} 25. h3 {[%emt 0:08:54]} Qe6 {[%emt 0:12:45]} 26. Rb3 {[%emt 0:01:52]} Qf6 {[%emt 0:00:52]} 27. Rcb1 {[%emt 0:06:12]} g6 {[%emt 0:00:17]} 28. Rb8+ {[%emt 0:03:26]} Rxb8 {[%emt 0:01:21]} 29. Rxb8+ {[%emt 0:00:03]} Kh7 {[%emt 0:00:08]} 30. Rb1 {[%emt 0:17:19]} Kg7 {[%emt 0:00:47]} 31. Qe2 {[%emt 0:08:08]} Ra4 {[%emt 0:00:13]} 32. Rc1 {[%emt 0:01:09]} h5 {[%emt 0:01:01]} 33. Qb2 {[%emt 0:02:20]} Ra6 {[%emt 0:01:30]} 34. Rc2 {[%emt 0:01:16]} Nf5 {[%emt 0:04:08]} 35. Nxf5+ {[%emt 0:02:47]} Qxf5 {[%emt 0:00:06]} 36. Rc1 {[%emt 0:00:44]} h4 {[%emt 0:00:29]} 37. Ra1 {[%emt 0:03:06]} 1/2-1/2

[Event "Slovakia Open Piestany-A 2022"]
[Site "Piestany"]
[Date "2022.07.17"]
[Round "8.14"]
[White "Farkas, Gabor"]
[Black "Savitha Shri B"]
[Result "0-1"]
[ECO "D10"]
[WhiteElo "2335"]
[BlackElo "2278"]
[Annotator "ChessBase"]
[PlyCount "58"]
[EventDate "2022.07.12"]
[EventType "swiss"]
[EventCountry "SVK"]
[SourceTitle "playchess.com"]
[Source "ChessBase"]
[SourceQuality "1"]
[TimeControl "40/5400+30:1800+30"]

1. d4 {[%emt 0:00:05]} d5 {[%emt 0:00:43]} 2. c4 {[%emt 0:00:07]} c6 {[%emt 0:00:04]} 3. Nc3 {[%emt 0:00:05]} Nf6 {[%emt 0:00:05]} 4. cxd5 {[%emt 0:00:05]} cxd5 {[%emt 0:00:05]} 5. Bf4 {[%emt 0:00:11]} Nc6 {[%emt 0:02:41]} 6. e3 {[%emt 0:00:07]} Bf5 {[%emt 0:07:29]} 7. Qb3 {[%emt 0:03:55]} Na5 {[%emt 0:13:49]} 8. Qa4+ {[%emt 0:02:15]} Bd7 {[%emt 0:00:43]} 9. Bb5 {[%emt 0:00:11]} e6 {[%emt 0:08:29]} 10. Bxd7+ {[%emt 0:05:59]} Nxd7 {[%emt 0:00:48]} 11. Nf3 {[%emt 0:03:57]} a6 {[%emt 0:05:06]} 12. Rc1 {[%emt 0:02:18]} b5 {[%emt 0:01:45]} 13. Qd1 {[%emt 0:00:01]} Rc8 {[%emt 0:03:50]} 14. O-O {[%emt 0:05:54]} Be7 {[%emt 0:02:30]} 15. Ne5 {[%emt 0:07:46]} O-O {[%emt 0:07:44]} 16. Qg4 {[%emt 0:02:38]} Nxe5 {[%emt 0:09:10]} 17. Bxe5 {[%emt 0:02:27]} g6 {[%emt 0:00:32]} 18. Bf4 {[%emt 0:02:54]} Re8 {[%emt 0:03:30]} 19. Ne2 {[%emt 0:01:54]} Qd7 {[%emt 0:02:47]} 20. h4 {[%emt 0:02:12]} h5 {[%emt 0:02:47]} 21. Qg3 {[%emt 0:03:43]} Nc4 {[%emt 0:02:48]} 22. b3 {[%emt 0:07:06]} Nd2 {[%emt 0:01:32]} 23. Rfd1 {[%emt 0:00:23]} Ne4 {[%emt 0:00:05]} 24. Qh3 {[%emt 0:00:28]} Rxc1 {[%emt 0:00:39]} 25. Nxc1 {[%emt 0:00:56]} Qc6 {[%emt 0:01:20]} 26. g3 {[%emt 0:04:59]} Nxf2 {[%emt 0:02:23]} 27. Kxf2 {[%emt 0:01:06]} Qc2+ {[%emt 0:00:06]} 28. Ne2 {[%emt 0:00:03]} Qxd1 {[%emt 0:00:06]} 29. g4 {[%emt 0:00:03]} Rc8 {[%emt 0:01:00]} 0-1

[Event "Slovakia Open Piestany-A 2022"]
[Site "Piestany"]
[Date "2022.07.17"]
[Round "8.15"]
[White "Holly, Andrej"]
[Black "Dixit, Nikhil"]
[Result "1-0"]
[ECO "A24"]
[WhiteElo "2213"]
[BlackElo "2325"]
[Annotator "ChessBase"]
[PlyCount "69"]
[EventDate "2022.07.12"]
[EventType "swiss"]
[EventCountry "SVK"]
[SourceTitle "playchess.com"]
[Source "ChessBase"]
[SourceQuality "1"]
[TimeControl "40/5400+30:1800+30"]

1. c4 {[%emt 0:00:05]} g6 {[%emt 0:05:40]} 2. g3 {[%emt 0:00:05]} Bg7 {[%emt 0:00:04]} 3. Bg2 {[%emt 0:00:02]} Nf6 {[%emt 0:00:12]} 4. Nc3 {[%emt 0:00:41]} O-O {[%emt 0:00:29]} 5. e4 {[%emt 0:00:10]} d6 {[%emt 0:00:09]} 6. Nge2 {[%emt 0:00:11]} e5 {[%emt 0:00:22]} 7. d3 {[%emt 0:00:05]} c6 {[%emt 0:00:20]} 8. O-O {[%emt 0:01:04]} a6 {[%emt 0:00:15]} 9. b4 {[%emt 0:03:17]} b5 {[%emt 0:00:43]} 10. a4 {[%emt 0:00:23]} bxc4 {[%emt 0:07:26]} 11. dxc4 {[%emt 0:01:15]} Be6 {[%emt 0:00:22]} 12. Qd3 {[%emt 0:00:20]} Qc7 {[%emt 0:01:24]} 13. a5 {[%emt 0:04:53]} Nbd7 {[%emt 0:03:27]} 14. Rd1 {[%emt 0:04:20]} Ne8 {[%emt 0:01:00]} 15. Be3 {[%emt 0:05:05]} Qc8 {[%emt 0:31:03]} 16. Na4 {[%emt 0:06:32]} Rb8 {[%emt 0:03:55]} 17. Rab1 {[%emt 0:05:30]} Nef6 {[%emt 0:05:31]} 18. Rdc1 {[%emt 0:05:06]} Ng4 {[%emt 0:02:09]} 19. Bg5 {[%emt 0:04:14]} f6 {[%emt 0:02:00]} 20. Qxd6 {[%emt 0:00:55]} Bf7 {[%emt 0:05:50]} 21. Bh3 {[%emt 0:09:20]} h5 {[%emt 0:02:11]} 22. Be3 {[%emt 0:01:42]} Rd8 {[%emt 0:02:05]} 23. Bxg4 {[%emt 0:06:27]} hxg4 {[%emt 0:00:22]} 24. b5 {[%emt 0:01:08]} cxb5 {[%emt 0:06:56]} 25. cxb5 {[%emt 0:01:00]} Qb7 {[%emt 0:00:12]} 26. bxa6 {[%emt 0:05:28]} Qxb1 {[%emt 0:05:28]} 27. Rxb1 {[%emt 0:00:09]} Rxb1+ {[%emt 0:00:05]} 28. Kg2 {[%emt 0:00:10]} Rbb8 {[%emt 0:02:07]} 29. a7 {[%emt 0:05:01]} Ra8 {[%emt 0:00:20]} 30. Bb6 {[%emt 0:01:57]} Nxb6 {[%emt 0:03:38]} 31. Qxd8+ {[%emt 0:00:16]} Rxd8 {[%emt 0:00:17]} 32. axb6 {[%emt 0:00:03]} Bc4 {[%emt 0:02:25]} 33. b7 {[%emt 0:00:26]} Bxe2 {[%emt 0:00:24]} 34. b8=Q {[%emt 0:00:08]} Bf3+ {[%emt 0:00:11]} 35. Kf1 {[%emt 0:00:18]} 1-0

[Event "Slovakia Open Piestany-A 2022"]
[Site "Piestany"]
[Date "2022.07.17"]
[Round "8.16"]
[White "Bhambure, Shantanu"]
[Black "Leszko, Bence"]
[Result "1/2-1/2"]
[ECO "D50"]
[WhiteElo "2320"]
[BlackElo "2241"]
[Annotator "ChessBase"]
[PlyCount "147"]
[EventDate "2022.07.12"]
[EventType "swiss"]
[EventCountry "SVK"]
[SourceTitle "playchess.com"]
[Source "ChessBase"]
[SourceQuality "1"]
[TimeControl "40/5400+30:1800+30"]

1. d4 {[%emt 0:00:03]} d5 {[%emt 0:13:24]} 2. c4 {[%emt 0:00:07]} e6 {[%emt 0:00:03]} 3. Nf3 {[%emt 0:00:15]} Nf6 {[%emt 0:00:12]} 4. Nc3 {[%emt 0:00:57]} c5 {[%emt 0:00:05]} 5. cxd5 {[%emt 0:00:48]} cxd4 {[%emt 0:00:08]} 6. Qxd4 {[%emt 0:05:05]} exd5 {[%emt 0:00:01]} 7. Bg5 {[%emt 0:02:46]} Be7 {[%emt 0:00:01]} 8. e3 {[%emt 0:00:57]} Nc6 {[%emt 0:00:06]} 9. Bb5 {[%emt 0:02:42]} O-O {[%emt 0:00:02]} 10. Qa4 {[%emt 0:00:51]} h6 {[%emt 0:10:00]} 11. Bh4 {[%emt 0:09:32]} Be6 {[%emt 0:09:01]} 12. Bxc6 {[%emt 0:16:30]} bxc6 {[%emt 0:00:07]} 13. Qxc6 {[%emt 0:00:28]} Rb8 {[%emt 0:01:11]} 14. O-O {[%emt 0:06:00]} Rxb2 {[%emt 0:01:13]} 15. Nd4 {[%emt 0:02:13]} Qb6 {[%emt 0:07:19]} 16. Qxb6 {[%emt 0:23:27]} Rxb6 {[%emt 0:00:00]} 17. Na4 {[%emt 0:00:30]} Rb7 {[%emt 0:00:07]} 18. Nc6 {[%emt 0:00:30]} Rc7 {[%emt 0:12:55]} 19. Nxe7+ {[%emt 0:00:53]} Rxe7 {[%emt 0:00:30]} 20. Bxf6 {[%emt 0:00:30]} gxf6 {[%emt 0:00:30]} 21. Nc5 {[%emt 0:00:30]} Rc7 {[%emt 0:00:30]} 22. Nb3 {[%emt 0:04:43]} Rb8 {[%emt 0:02:52]} 23. Nd4 {[%emt 0:04:20]} Rb2 {[%emt 0:02:16]} 24. Rfb1 {[%emt 0:00:23]} Rcb7 {[%emt 0:00:34]} 25. Rxb2 {[%emt 0:03:12]} Rxb2 {[%emt 0:00:22]} 26. a3 {[%emt 0:00:32]} Bd7 {[%emt 0:03:37]} 27. Rc1 {[%emt 0:10:26]} a6 {[%emt 0:23:45]} 28. h3 {[%emt 0:00:38]} Ra2 {[%emt 0:02:59]} 29. Rc7 {[%emt 0:03:23]} Bb5 {[%emt 0:06:02]} 30. Nxb5 {[%emt 0:00:13]} axb5 {[%emt 0:00:01]} 31. Rc3 {[%emt 0:01:16]} Rb2 {[%emt 0:01:18]} 32. Rd3 {[%emt 0:00:23]} b4 {[%emt 0:00:08]} 33. axb4 {[%emt 0:00:12]} Rxb4 {[%emt 0:00:16]} 34. Rxd5 {[%emt 0:00:04]} Rb2 {[%emt 0:00:19]} 35. g4 {[%emt 0:00:36]} Kg7 {[%emt 0:00:06]} 36. Kg2 {[%emt 0:00:03]} Ra2 {[%emt 0:00:07]} 37. Kg3 {[%emt 0:00:04]} Re2 {[%emt 0:00:16]} 38. Rf5 {[%emt 0:00:04]} Ra2 {[%emt 0:00:19]} 39. Rh5 {[%emt 0:00:05]} Re2 {[%emt 0:00:16]} 40. Rc5 {[%emt 0:00:06]} Re1 {[%emt 0:00:29]} 41. Kf3 {[%emt 0:30:04]} Rh1 {[%emt 0:30:12]} 42. Kg2 {[%emt 0:00:03]} Re1 {[%emt 0:00:05]} 43. Rb5 {[%emt 0:00:03]} Re2 {[%emt 0:00:21]} 44. h4 {[%emt 0:02:19]} Ra2 {[%emt 0:00:20]} 45. Kg3 {[%emt 0:00:16]} Ra1 {[%emt 0:00:24]} 46. Kf4 {[%emt 0:01:26]} Rh1 {[%emt 0:02:26]} 47. h5 {[%emt 0:00:34]} Ra1 {[%emt 0:00:26]} 48. Rd5 {[%emt 0:01:05]} Ra4+ {[%emt 0:00:32]} 49. Kf5 {[%emt 0:00:33]} Ra2 {[%emt 0:00:31]} 50. f4 {[%emt 0:00:45]} Ra3 {[%emt 0:01:18]} 51. e4 {[%emt 0:00:13]} Ra6 {[%emt 0:00:16]} 52. g5 {[%emt 0:00:00]} fxg5 {[%emt 0:00:00]} 53. fxg5 {[%emt 0:00:00]} hxg5 {[%emt 0:00:00]} 54. Kxg5 {[%emt 0:00:00]} Re6 {[%emt 0:00:00]} 55. Kf4 {[%emt 0:00:00]} Rf6+ {[%emt 0:00:00]} 56. Rf5 {[%emt 0:00:00]} Re6 {[%emt 0:00:00]} 57. Re5 {[%emt 0:00:00]} Rf6+ {[%emt 0:00:00]} 58. Kg4 {[%emt 0:00:00]} Ra6 {[%emt 0:00:00]} 59. Rg5+ {[%emt 0:00:00]} Kh6 {[%emt 0:00:00]} 60. e5 {[%emt 0:00:00]} Ra1 {[%emt 0:00:00]} 61. Rf5 {[%emt 0:00:00]} Kg7 {[%emt 0:00:00]} 62. Rf3 {[%emt 0:00:02]} Ra4+ {[%emt 0:00:00]} 63. Kf5 {[%emt 0:03:09]} Ra6 {[%emt 0:00:00]} 64. Rg3+ {[%emt 0:02:31]} Kh6 {[%emt 0:00:00]} 65. Rd3 {[%emt 0:00:27]} Ra1 {[%emt 0:00:00]} 66. Rh3 {[%emt 0:02:04]} Ra6 {[%emt 0:00:00]} 67. Rh4 {[%emt 0:00:58]} Rb6 {[%emt 0:00:00]} 68. Rd4 {[%emt 0:00:24]} Rb1 {[%emt 0:00:49]} 69. Rd7 {[%emt 0:01:06]} Rf1+ {[%emt 0:00:21]} 70. Kg4 {[%emt 0:00:16]} Rg1+ {[%emt 0:00:40]} 71. Kf5 {[%emt 0:00:52]} Rf1+ {[%emt 0:00:01]} 72. Kg4 {[%emt 0:00:23]} Rg1+ {[%emt 0:00:05]} 73. Kh4 {[%emt 0:00:34]} Rh1+ {[%emt 0:00:13]} 74. Kg4 {[%emt 0:00:22]} 1/2-1/2

[Event "Slovakia Open Piestany-A 2022"]
[Site "Piestany"]
[Date "2022.07.17"]
[Round "8.17"]
[White "Walter, Ema"]
[Black "Pniaczek, Marek"]
[Result "0-1"]
[ECO "B83"]
[WhiteElo "2000"]
[BlackElo "2312"]
[Annotator "ChessBase"]
[PlyCount "46"]
[EventDate "2022.07.12"]
[EventType "swiss"]
[EventCountry "SVK"]
[SourceTitle "playchess.com"]
[Source "ChessBase"]
[SourceQuality "1"]
[TimeControl "40/5400+30:1800+30"]

1. e4 {[%emt 0:00:21]} c5 {[%emt 0:00:02]} 2. Nf3 {[%emt 0:00:11]} d6 {[%emt 0:00:08]} 3. d4 {[%emt 0:00:05]} cxd4 {[%emt 0:00:05]} 4. Nxd4 {[%emt 0:00:03]} Nc6 {[%emt 0:00:07]} 5. Nc3 {[%emt 0:00:07]} e6 {[%emt 0:01:09]} 6. Be3 {[%emt 0:00:26]} a6 {[%emt 0:02:47]} 7. a4 {[%emt 0:00:42]} Nf6 {[%emt 0:00:42]} 8. Be2 {[%emt 0:05:34]} Be7 {[%emt 0:00:49]} 9. O-O {[%emt 0:00:59]} O-O {[%emt 0:00:03]} 10. Qd2 {[%emt 0:02:29]} Qc7 {[%emt 0:00:55]} 11. Nb3 {[%emt 0:06:33]} b6 {[%emt 0:02:27]} 12. Rad1 {[%emt 0:11:11]} Bb7 {[%emt 0:01:43]} 13. f4 {[%emt 0:09:43]} Rab8 {[%emt 0:08:29]} 14. Bf3 {[%emt 0:03:47]} Na5 {[%emt 0:04:21]} 15. Nxa5 {[%emt 0:09:31]} bxa5 {[%emt 0:00:20]} 16. Qf2 {[%emt 0:05:03]} Ba8 {[%emt 0:02:48]} 17. Bc1 {[%emt 0:03:19]} Rb4 {[%emt 0:02:03]} 18. Rfe1 {[%emt 0:02:26]} Nd7 {[%emt 0:05:51]} 19. Rd4 {[%emt 0:07:33]} d5 {[%emt 0:05:20]} 20. Rxb4 {[%emt 0:01:12]} axb4 {[%emt 0:00:08]} 21. Nd1 {[%emt 0:01:12]} dxe4 {[%emt 0:00:06]} 22. Rxe4 {[%emt 0:02:50]} Bxe4 {[%emt 0:01:16]} 23. Bxe4 {[%emt 0:00:01]} Nc5 {[%emt 0:00:50]} 0-1

[Event "Slovakia Open Piestany-A 2022"]
[Site "Piestany"]
[Date "2022.07.17"]
[Round "8.18"]
[White "Michelle Catherina, P."]
[Black "Turcan, Richard"]
[Result "0-1"]
[ECO "B60"]
[WhiteElo "2141"]
[BlackElo "2304"]
[Annotator "ChessBase"]
[PlyCount "64"]
[EventDate "2022.07.12"]
[EventType "swiss"]
[EventCountry "SVK"]
[SourceTitle "playchess.com"]
[Source "ChessBase"]
[SourceQuality "1"]
[TimeControl "40/5400+30:1800+30"]

1. e4 {[%emt 0:04:22]} c5 {[%emt 0:00:09]} 2. Nf3 {[%emt 0:00:32]} Nc6 {[%emt 0:00:18]} 3. d4 {[%emt 0:00:14]} cxd4 {[%emt 0:00:07]} 4. Nxd4 {[%emt 0:00:04]} Nf6 {[%emt 0:00:14]} 5. Nc3 {[%emt 0:00:08]} d6 {[%emt 0:00:34]} 6. Bg5 {[%emt 0:02:40]} g6 {[%emt 0:01:32]} 7. Bxf6 {[%emt 0:01:39]} exf6 {[%emt 0:00:08]} 8. Be2 {[%emt 0:02:58]} Bg7 {[%emt 0:02:47]} 9. Ndb5 {[%emt 0:02:37]} O-O {[%emt 0:00:37]} 10. Nxd6 {[%emt 0:04:11]} Be6 {[%emt 0:14:44]} 11. Nc4 {[%emt 0:12:45]} f5 {[%emt 0:05:53]} 12. exf5 {[%emt 0:04:28]} Bxf5 {[%emt 0:05:48]} 13. Ne3 {[%emt 0:10:13]} Qb6 {[%emt 0:10:31]} 14. Qc1 {[%emt 0:06:19]} Rfe8 {[%emt 0:07:45]} 15. O-O {[%emt 0:03:47]} Nd4 {[%emt 0:03:14]} 16. Bc4 {[%emt 0:05:18]} Rac8 {[%emt 0:13:38]} 17. Nxf5 {[%emt 0:15:48]} Rxc4 {[%emt 0:10:30]} 18. Nxd4 {[%emt 0:05:07]} Bxd4 {[%emt 0:00:12]} 19. Nd1 {[%emt 0:03:57]} Re2 {[%emt 0:04:39]} 20. c3 {[%emt 0:00:23]} Qf6 {[%emt 0:01:15]} 21. Ne3 {[%emt 0:07:27]} Bxe3 {[%emt 0:00:06]} 22. fxe3 {[%emt 0:00:08]} Qe5 {[%emt 0:00:31]} 23. Rf3 {[%emt 0:03:43]} Rg4 {[%emt 0:00:26]} 24. Qf1 {[%emt 0:01:44]} Rxb2 {[%emt 0:00:29]} 25. Rd1 {[%emt 0:00:52]} Qg5 {[%emt 0:01:52]} 26. g3 {[%emt 0:00:53]} Ra4 {[%emt 0:02:42]} 27. Kh1 {[%emt 0:01:11]} Raxa2 {[%emt 0:00:17]} 28. h4 {[%emt 0:00:24]} Rh2+ {[%emt 0:00:52]} 29. Kg1 {[%emt 0:00:30]} Rxh4 {[%emt 0:00:27]} 30. Qd3 {[%emt 0:00:25]} Rh1+ {[%emt 0:00:18]} 31. Kxh1 {[%emt 0:00:02]} Qh5+ {[%emt 0:00:10]} 32. Kg1 {[%emt 0:00:05]} Qh2+ {[%emt 0:00:04]} 0-1